Cogmind - Beta 16.1 *** ADVENTURER MODE // 2026.02.24 @ 17:20:56 Player: Roland Result: Destroyed by G-47 Trooper with Particle Gun Performance ------------- Evolutions (2) 1000 Regions Visited (5) 1000 Robots Destroyed (41) 205 Value Destroyed (1241) 1241 Prototype IDs (3) 60 Alien Tech Used (0) 0 Bonus (21) 21 TOTAL SCORE: 3527 Bonus ------- Follower Combat Kills 21 Cogmind --------- Core Integrity 0/550 Matter 185/300 Energy 99/100 System Corruption 0% Temperature Cool (9) Movement Core (50) Location -8/Storage Parts ------- > --- POWER (1) -------- (None) > --- PROPULSION (4) --- (None) > --- UTILITY (4) ------ Advanced Targeting Computer ECM Suite > --- WEAPON (2) ------- (None) > --- INVENTORY (5) ---- Experimental Sensor Array Subdweller Beam Cannon Peak State ------------ > --- POWER ------------ Backup Power I Backup Power I > --- PROPULSION ------- Improved Flight Unit Improved Flight Unit Improved VTOL Module Improved VTOL Module > --- UTILITY ---------- Advanced Targeting Computer Backup Plating I Power Bank > --- WEAPON ----------- Subdweller Laser Barrage Gun > --- INVENTORY -------- Experimental Sensor Array Particle Gun Subdweller Beam Cannon Battle Cannon [Rating: 35] Favorites ----------- Power Light Ion Engine Engine Light Ion Engine Propulsion Light Treads Treads Light Treads Leg Titanium Leg Wheel Subdweller Monowheel Flight Unit Flight Unit Utility Small Storage Unit Device Power Bank Storage Small Storage Unit Processor Advanced Targeting Computer Protection Backup Plating I Weapon Assault Rifle Energy Gun Subdweller Laser Ballistic Gun Assault Rifle Ballistic Cannon Battle Cannon Launcher Rocket Launcher Special Weapon Mining Laser Build | -11 -10 -10 -10 -8 -8 ------- Run | Yrd Mat Min Sub Mat Sto Slots Evolved 4 | . . . . 4 . Power . | . . . . . . Propulsion 2 | . . . . 2 . Utility 2 | . . . . 2 . Weapon . | . . . . . . Parts Attached 28 | 7 2 . 9 . 10 Power 4 | 1 . . 3 . . Engine 4 | 1 . . 3 . . Core . | . . . . . . Reactor . | . . . . . . Propulsion 9 | 2 . . 2 . 5 Treads 2 | 2 . . . . . Leg 1 | . . . . . 1 Wheel 1 | . . . 1 . . Hover . | . . . . . . Flight 5 | . . . 1 . 4 Utility 6 | 2 . . 1 . 3 Device 4 | 1 . . 1 . 2 Storage 1 | 1 . . . . . Processor 1 | . . . . . 1 Hackware . | . . . . . . Protection . | . . . . . . Artifact . | . . . . . . Weapon 9 | 2 2 . 3 . 2 Energy Gun 2 | . . . 1 . 1 Energy Cannon . | . . . . . . Ballistic Gun 3 | 2 . . . . 1 Ballistic Cannon 1 | . . . 1 . . Launcher 2 | . 2 . . . . Special Weapon 1 | . . . 1 . . Impact Weapon . | . . . . . . Slashing Weapon . | . . . . . . Piercing Weapon . | . . . . . . Special Melee Weapon . | . . . . . . Unidentified Prototypes 3 | . . . 1 . 2 Parts Lost 19 | . . . 7 . 12 Power 4 | . . . 2 . 2 Propulsion 5 | . . . 2 . 3 Utility 2 | . . . . . 2 Weapon 8 | . . . 3 . 5 Highest Loss Streak 10 | . . . 1 . 10 To Critical Strikes . | . . . . . . Average Backups 4 | . 1 4 4 4 3 Power . | . . . . . . Propulsion . | . . . . . . Utility 1 | . . . 1 1 1 Weapon 2 | . 1 3 2 3 2 Tool/Special . | . . . . . . Unused Backups 2 | . . . . . 2 Power . | . . . . . . Propulsion . | . . . . . . Utility 1 | . . . . . 1 Weapon 1 | . . . . . 1 Tool/Special . | . . . . . . Average Slot Usage (%) 76 | . 100 100 69 34 50 Engine 11 | . 14 14 12 5 4 Treads 17 | . 28 28 15 . . Flight 2 | . . . . 7 17 Device 11 | . 14 14 10 7 8 Storage 8 | . 14 14 8 . . Energy Gun 2 | . . . 2 7 5 Ballistic Gun 7 | . 11 14 5 . 1 Ballistic Cannon 2 | . . . 4 . . Launcher 7 | . 16 14 5 . . Special Weapon 2 | . . . 3 7 4 Peak Build Rating 35 | 7 9 9 20 16 35 Average Rating 14 | 4 8 8 15 15 21 On Entrance 9 | . 7 8 9 16 14 Avg Prop Armor Cover (%) 3 | . . . 5 5 3 Naked Turns . | . . . . . . Heaviest Build 23 | 12 17 15 23 13 13 Greatest Support 40 | 40 40 40 40 3 17 Greatest Overweight (x) 5 | . . . 5 4 1 Average Overweight (x) . | . . . . 3 . Largest Inventory Capacity 8 | 8 8 8 8 5 5 Average Capacity 7 | 7 8 8 7 5 5 Most Carried 6 | 3 3 5 6 5 5 Average Carried 4 | . 1 4 4 4 3 Final Capacity 8 | 8 8 8 5 5 5 Final Carried 5 | . 3 5 4 5 2 Class Distribution -------------------- 95% | Mutant 4% | Sprinter Dominant Class ---------------- Mutant | -10/Materials Mutant | -10/Mines Mutant | -10/Subcaves Mutant | -8/Materials Mutant | -8/Storage Resources | -11 -10 -10 -10 -8 -8 ----------- Run | Yrd Mat Min Sub Mat Sto Matter Collected 1180 | 141 4 300 556 . 179 Remotely . | . . . . . . Salvage Created 917 | 24 13 69 587 . 224 Parts 67 | 6 . 19 30 . 12 Haulers Intercepted . | . . . . . . Recyclers Shooed . | . . . . . . Parts Field Recycled . | . . . . . . Retrieved Matter . | . . . . . . Parts Self-Destructed 4 | . . . 4 . . Prevented . | . . . . . . Parts Restored . | . . . . . . Kills | -11 -10 -10 -10 -8 -8 ------- Run | Yrd Mat Min Sub Mat Sto Combat Hostiles Destroyed 33 | . . 9 20 . 4 Guns 8 | . . 1 3 . 4 Cannons 10 | . . . 10 . . AOE 15 | . . 8 7 . . Classes Destroyed 7 | 1 2 1 3 . . Worker 4 | . 1 3 . . . Tunneler 2 | 2 . . . . . Watcher 2 | . 1 . . . 1 Swarmer 10 | . . 9 1 . . Grunt 5 | . . . 2 . 3 Sentry 2 | . . . 1 . 1 Subdweller 16 | . . . 16 . . Best Kill Streak 4 | 2 2 4 3 . 2 Combat Bots Only 3 | . . 3 3 . 2 Max Kills in Single Turn 2 | 1 1 2 2 . 1 Gunslinging . | . . . . . . Exploded 2 | . . 2 2 . . Melee . | . . . . . . Uniques/NPCs Destroyed . | . . . . . . Combat | -11 -10 -10 -10 -8 -8 -------- Run | Yrd Mat Min Sub Mat Sto Hostile Shots Fired 231 | . . 26 64 4 137 Missed 66 | . . 10 13 . 43 Hits 165 | . . 16 51 4 94 Projectile 165 | . . 16 51 4 94 Critical Strikes 6 | . . 1 1 . 4 Damage Taken 2253 | . . 127 890 33 1203 Core 762 | . . 14 192 . 556 Absorbed by Shields . | . . . . . . Ignored by Resistances 630 | . . 41 246 10 333 Core Remaining (%) 58 | 100 . . 17 . . Volleys Fired 132 | 4 2 16 85 . 25 Largest 2 | 2 2 2 2 . 2 Hottest 160 | 40 66 53 160 . 160 Shots Fired 210 | 8 3 17 140 . 42 Gun 111 | 8 1 6 57 . 39 Cannon 44 | . . . 42 . 2 Launcher 33 | . 2 11 20 . . Special 22 | . . . 21 . 1 Kinetic 108 | 8 1 6 75 . 18 Thermal 69 | . . . 45 . 24 Explosive 33 | . 2 11 20 . . Electromagnetic . | . . . . . . Robot Hit Streak 10 | 5 6 3 10 . 10 Robot Miss Streak 2 | 1 . 2 1 . 2 Penetration Max . | . . . . . . Secondary Targets 1 | . . . . . 1 Max Gunslinging Chain 1 | . . . . . 1 Shots Hit Robots 95 | 7 1 4 51 . 32 Core Hits 63 | 2 2 14 32 . 13 Critical Kills . | . . . . . . Critical Parts Destroyed . | . . . . . . Critical Strikes 2 | . . . 2 . . Destroy 1 | . . . 1 . . Blast 1 | . . . 1 . . Melee Attacks . | . . . . . . Impact . | . . . . . . Slashing . | . . . . . . Piercing . | . . . . . . Sneak Attacks . | . . . . . . Combat Hostiles . | . . . . . . Follow-up Attacks . | . . . . . . Damage Inflicted 2960 | 79 82 605 1557 . 637 Guns 949 | 79 15 25 275 . 555 Cannons 568 | . . . 516 . 52 Explosions 1374 | . 67 541 766 . . Melee . | . . . . . . Ramming 45 | . . 39 . . 6 Kinetic 1115 | 79 15 25 710 . 286 Thermal 455 | . . 29 81 . 345 Explosive 1345 | . 67 512 766 . . Electromagnetic . | . . . . . . Impact . | . . . . . . Slashing . | . . . . . . Piercing . | . . . . . . Highest Corruption . | . . . . . . Average Corruption . | . . . . . . Corruption Purged . | . . . . . . Corruption Blocked . | . . . . . . Overload Shots . | . . . . . . Overflow Damage 1 | . . 1 . . . Projectiles . | . . . . . . Explosions 1 | . . 1 . . . Melee . | . . . . . . Knockbacks 2 | . . . 2 . . Impact . | . . . . . . Kinetic 2 | . . . 2 . . Secondary . | . . . . . . Self-Inflicted Damage 85 | . . 28 54 . 3 Shots 4 | . . 2 2 . . Rammed 12 | . . 11 . . 1 Targets Rammed 12 | . . 11 . . 1 Kicked . | . . . . . . Crushed . | . . . . . . Highest Temperature 569 | . 6 . 6 . 569 Average Temperature 171 | . 4 . 3 . 182 Received Heat Transfer 993 | . . . 210 9 774 Effects 14 | . . . . . 14 Shutdowns 2 | . . . . . 2 Interference 3 | . . . . . 3 Matter Decay 3 | . . . . . 3 Short Circuit 1 | . . . . . 1 Damage (minor) 2 | . . . . . 2 Damage (major) 3 | . . . . . 3 Siege Activations . | . . . . . . Martial Activations . | . . . . . . Shielding Activations . | . . . . . . Robots Disrupted . | . . . . . . Combat Hostiles . | . . . . . . Robots Corrupted . | . . . . . . Combat Hostiles . | . . . . . . Parts Fried . | . . . . . . Impact Corruptions . | . . . . . . Robots Melted . | . . . . . . Combat Hostiles . | . . . . . . Parts Melted 2 | . . . 1 . 1 Heat Transferred 636 | . . 50 100 . 486 Parts Sabotaged . | . . . . . . Parts Stolen . | . . . . . . Parts Stripped . | . . . . . . Power Chain Reactions . | . . . . . . Alert | -11 -10 -10 -10 -8 -8 ------- Run | Yrd Mat Min Sub Mat Sto Maximum Alert Level . | . . . . . . Low Security (%) 100 | 100 100 100 . 100 100 Level 1 . | . . . . . . Level 2 . | . . . . . . Level 3 . | . . . . . . Level 4 . | . . . . . . Level 5 . | . . . . . . High Security . | . . . . . . Max Security . | . . . . . . Peak Influence 162 | 5 28 162 . . 81 Initial 2 | . 2 . . . . Average 39 | . 6 58 . . 13 Influence Increases 890 | 10 28 537 90 . 225 Destroy 0b10 Robot/C 400 | . . 240 80 . 80 Destroy 0b10 Robot/NC 40 | 10 10 15 . . 5 Destroy Leader 64 | . 2 40 10 . 12 Allied During Kill 6 | . . 6 . . . Successful Hack 20 | . . . . . 20 Disable Machine 117 | . . 99 . . 18 Destroy Structure 123 | . 16 107 . . . Lose Combat Pursuer 120 | . . 30 . . 90 Influence Decreases 865 | 5 33 503 124 . 200 Entered New Map 24 | . 3 . 21 . . Time Decay 711 | 5 30 483 103 . 90 Lost Part 110 | . . . . . 110 Lost Ally 20 | . . 20 . . . Squads Dispatched 1 | . . . . . 1 Investigation . | . . . . . . Extermination . | . . . . . . Reinforcement . | . . . . . . Assault . | . . . . . . Garrison 1 | . . . . . 1 Intercept . | . . . . . . Searches Triggered . | . . . . . . Construction Impeded . | . . . . . . Haulers Reinforced . | . . . . . . Active Scanning Responses . | . . . . . . Cargo Convoy Interrupts . | . . . . . . Stealth | -11 -10 -10 -10 -8 -8 --------- Run | Yrd Mat Min Sub Mat Sto Distress Signals 2 | . . 1 . . 1 Communications Jammed . | . . . . . . Distress Signals . | . . . . . . Times Spotted 52 | . 1 10 19 4 18 Peak Tracking Total 9 | . 1 3 3 4 9 Tactical Retreats 5 | . . 1 . . 4 Traps | -11 -10 -10 -10 -8 -8 ------- Run | Yrd Mat Min Sub Mat Sto Traps Triggered 1 | . . . 1 . . Indirectly . | . . . . . . Trap Hack Attempts . | . . . . . . Triggered . | . . . . . . Disarmed . | . . . . . . Reprogrammed . | . . . . . . Reused . | . . . . . . Traps Extracted . | . . . . . . Installed . | . . . . . . Triggered . | . . . . . . Machines | -11 -10 -10 -10 -8 -8 ---------- Run | Yrd Mat Min Sub Mat Sto Machines Disabled 13 | . . 11 . . 2 Max in Single Turn 7 | . . 7 . . 1 Machines Repaired . | . . . . . . Machines Dismantled . | . . . . . . Machines Sabotaged . | . . . . . . Overloaded Fab Kills . | . . . . . . Hacking | -11 -10 -10 -10 -8 -8 --------- Run | Yrd Mat Min Sub Mat Sto Machines Accessed 6 | . 1 . . . 5 Terminals 5 | . 1 . . . 4 Fabricators . | . . . . . . Repair Stations 1 | . . . . . 1 Recycling Units . | . . . . . . Scanalyzers . | . . . . . . Garrison Access . | . . . . . . Total Hacks 11 | . 1 . . . 10 Successful 5 | . . . . . 5 Failed 6 | . 1 . . . 5 Catastrophic . | . . . . . . Database Lockouts . | . . . . . . Manual 7 | . 1 . . . 6 Terminals 10 | . 1 . . . 9 Fabricators . | . . . . . . Repair Stations 1 | . . . . . 1 Recycling Units . | . . . . . . Scanalyzers . | . . . . . . Garrison Access . | . . . . . . Terminal Hacks 2 | . . . . . 2 Robot Analysis 1 | . . . . . 1 Branch Access Points 1 | . . . . . 1 Fabricator Hacks . | . . . . . . Repair Station Hacks 1 | . . . . . 1 Refit 1 | . . . . . 1 Recycling Unit Hacks . | . . . . . . Scanalyzer . | . . . . . . Garrison Access Hacks . | . . . . . . Unauthorized Hacks 2 | . . . . . 2 Terminals 2 | . . . . . 2 Assimilate 1 | . . . . . 1 Botnet 1 | . . . . . 1 Fabricators . | . . . . . . Repair Stations . | . . . . . . Recycling Units . | . . . . . . Scanalyzers . | . . . . . . Garrison Access . | . . . . . . Data Cores Recovered . | . . . . . . Used . | . . . . . . Hacking Detections 5 | . 1 . . . 4 Full Trace Events . | . . . . . . Feedback Events . | . . . . . . Feedback Blocked . | . . . . . . Robot Schematics Acquired . | . . . . . . Robots Built . | . . . . . . Authchips . | . . . . . . Time . | . . . . . . Total Robot Build Rating . | . . . . . . Part Schematics Acquired . | . . . . . . Parts Built . | . . . . . . Authchips . | . . . . . . Time . | . . . . . . Total Part Build Rating . | . . . . . . Part Studies Acquired . | . . . . . . Parts Repaired . | . . . . . . Time . | . . . . . . Parts Recycled . | . . . . . . Recycled Matter . | . . . . . . Retrieved Matter . | . . . . . . Retrieved Components . | . . . . . . Parts Scanalyzed . | . . . . . . Part Schematics Acquired . | . . . . . . Parts Damaged . | . . . . . . Bothacking | -11 -10 -10 -10 -8 -8 ------------ Run | Yrd Mat Min Sub Mat Sto Used RIF Installer . | . . . . . . Robots Hacked . | . . . . . . Non-combat . | . . . . . . Combat . | . . . . . . Robot Hacks Applied . | . . . . . . Relay Couplers Released . | . . . . . . Fabnet Peak Effective % . | . . . . . . Robots Rewired . | . . . . . . Allies Hacked . | . . . . . . Hacks Repelled . | . . . . . . Allies | -11 -10 -10 -10 -8 -8 -------- Run | Yrd Mat Min Sub Mat Sto Total Allies 2 | . . 2 . . . Largest Group 2 | . . 2 . . . Highest-Rated Group 39 | . . 39 . . . Highest-Rated Ally 31 | . . 31 . . . Total Orders . | . . . . . . Ally Attacks 13 | . . 13 . . . Total Damage 167 | . . 167 . . . Kills 3 | . . 3 . . . Allies Corrupted . | . . . . . . Allies Melted . | . . . . . . Intel | -11 -10 -10 -10 -8 -8 ------- Run | Yrd Mat Min Sub Mat Sto Active Infowar (turns) 1593 | 3 114 1085 383 . 8 Seismic 1585 | 3 114 1085 383 . . ECM 8 | . . . . . 8 Robot Analysis Total 1 | . . . . . 1 Derelict Logs Recovered 2 | . . 1 1 . . Drone Launches . | . . . . . . Drone Recoveries . | . . . . . . Exploration | -11 -10 -10 -10 -8 -8 ------------- Run | Yrd Mat Min Sub Mat Sto Turns Passed 3991 | 72 114 1085 2255 100 365 Spaces Moved 2440 | 36 64 628 1186 46 480 Core 200 | 9 . . 103 46 42 Treads 1644 | 27 64 628 925 . . Legs 75 | . . . . . 75 Wheels 158 | . . . 158 . . Hover . | . . . . . . Flight 363 | . . . . . 363 Fastest Speed 32 | 50 160 160 110 150 32 Average Speed 142 | 132 160 160 165 219 56 Slowest Speed 300 | 160 160 160 300 250 130 Overloaded Moves . | . . . . . . Propulsion Burnouts . | . . . . . . Robots Hopped 6 | . . . . . 6 Potential Cave-ins . | . . . . . . Cave-ins Triggered . | . . . . . . Exploration Rate (%) 41 | 2 17 99 76 6 48 Regions Visited 5 Branch Regions 3 Pre-discovered Areas 2 | . . 1 . . 1 Known Exits Taken . | . . . . . . Unknown Exits Taken 5 | 1 1 1 1 1 . Scrap Searched 8 | . . 2 6 . . Spaces Dug . | . . . . . . Terrain Destroyed 284 | . 14 137 133 . . Melee . | . . . . . . Projectile 1 | . . . 1 . . AOE 283 | . 14 137 132 . . Terrain Rammed . | . . . . . . Walls Destroyed . | . . . . . . Machines Disabled . | . . . . . . Actions | -11 -10 -10 -10 -8 -8 --------- Run | Yrd Mat Min Sub Mat Sto Total 2683 | 53 71 685 1300 46 528 Wait 30 | . . 29 . . 1 Move 2423 | 35 63 627 1185 45 468 Hop 6 | . . . . . 6 Pick Up 30 | 7 3 2 9 . 9 Fast Attach . | . . . . . . Attach 26 | 7 . . 8 . 11 Detach 6 | . . . 2 1 3 Swap 9 | . 3 . 6 . . Drop 9 | . . . 5 . 4 Fire 132 | 4 2 16 85 . 25 Melee . | . . . . . . Ram 1 | . . . . . 1 Kick . | . . . . . . Crush 11 | . . 11 . . . Escape Stasis . | . . . . . . Rewire . | . . . . . . Trap . | . . . . . . Miscellaneous . | . . . . . . Route ------- -11/Scrapyard -10/Materials -10/Mines (discovered 3 exits: [*Mat x2] / [*Sub]) -10/Subcaves (discovered 2 exits: [*Mat x2]) -8/Materials -8/Storage (discovered 1 exit: Rec) History --------- Turn | Location | Event 6 | -11/Scrapyard | Discovered new exit (range 16) 73 | -11/Scrapyard | Entered Materials 165 | -10/Materials | Discovered new exit (range 7) 187 | -10/Materials | Entered Mines 229 | -10/Mines | Learned location of Mines (-8) 284 | -10/Mines | Found a damaged Exp. Sensor Array with a note attached 287 | -10/Mines | Found Prototype Device 302 | -10/Mines | Build established: Mutant 748 | -10/Mines | Discovered new exit (range 9) 1184 | -10/Mines | Discovered new exit (range 5) 1213 | -10/Mines | Discovered new exit (range 10) 1272 | -10/Mines | Entered Subcaves 1630 | -10/Subcaves | A Subdweller sparked back to life 1630 | -10/Subcaves | A Subdweller sparked back to life 1630 | -10/Subcaves | A Subdweller sparked back to life 1654 | -10/Subcaves | Found Prototype Device 1655 | -10/Subcaves | Identified Power Bank 1656 | -10/Subcaves | Attached Power Bank, gained temporary slots: Power x3 1819 | -10/Subcaves | Discovered new exit (range 8) 1886 | -10/Subcaves | Learned Materials trap positions 1914 | -10/Subcaves | Disturbed a concealed Subdweller 2175 | -10/Subcaves | Shifting Twisted Machinery released Mak. System Shield 2180 | -10/Subcaves | Shifting Twisted Machinery released Battle Cannon 2330 | -10/Subcaves | A swath of the cavern ceiling suddenly collapsed 2501 | -10/Subcaves | A swath of the cavern ceiling suddenly collapsed 2795 | -10/Subcaves | Core integrity fell below 50% 3041 | -10/Subcaves | Core integrity fell below 20% 3395 | -10/Subcaves | Discovered new exit (range 7) 3527 | -10/Subcaves | Entered Materials 3527 | -8/Materials | Evolved 4 slots: Propulsion x2, Utility x2 3527 | -8/Materials | Discovered new exit (range 14) 3528 | -8/Materials | Loaded intel: 22 trap records 3627 | -8/Materials | Entered Storage 3715 | -8/Storage | Identified exit to Recycling 3816 | -8/Storage | Learned location of Armory (-4) 3862 | -8/Storage | Garrison activated, responded to threat 3966 | -8/Storage | Core integrity fell below 50% 3986 | -8/Storage | Core integrity fell below 20% 3990 | -8/Storage | Lost 10 parts (2p3n1u4w) 3992 | -8/Storage | Destroyed by G-47 Trooper with Particle Gun Last Messages --------------- Overheating: Power Bank damaged (-8). Overheating: Matter decay (-44). K-01 Serf cleans the Compression Vault. Imp. Flight Unit destroyed. K-01 Serf cleans the Compression Vault. Acquired ECM Suite. Discarded Power Bank. K-01 Serf cleans the Compression Vault. Temporary Power slot lost. Dropped Broken Imp. Flight Unit. Acquired ECM Suite. Imp. VTOL Module destroyed. Critical hit (Burn: +37). K-01 Serf destroyed. Slammed into G-47 Trooper. K-01 Serf collects debris. Critical hit (Burn: +37). U-05 Engineer builds a Door. ECM Suite destroyed. K-01 Serf collects debris. Map ----- +----------------------------------------------------+ | #?????????????????### #######??#####?????????? | | ###???????????????# #### #?????????? | | ""#???????????????# """ """ + #?????????? | | " T"#???????????????# """ """ #### #?????????? | | " ""#???????????????# """ """ #??## ##??>??????? | | " ###???????????????# """ #???# #??????????? | | #?????????????????# """ #???# #??????????? | | !######????????????# #???# #??????????? | | ####"""###??????????# #???# #??????????? | | ??##"Y"#[####??##########/######### #??????????? | | ??# ! *!% #??? # u #??????????? | | ### =*= * #???? """" # ##########??????????? | | """ %*! #???? """" + Y #???????????????????? | | "R "" []] ##??? """" # #???????????????????? | | """ """%]%! T#??? """" + =#???????????????????? | | ### """=]! ### #k*%#???????????????????? | | ??# %[ #?# ?#g Y#???????????????????? | | ??# #?# ??#g g#???????????????????? | | #######+#####?# ? ???# Y #???????????????????? | | #????########## #???????????????????? | | ###### # #???????????????????? | | / [ !=] # #???????????????????? | | #######+####### ! ! + #???????????????????? | | ?# # !] # #???????????????????? | | ?# # + #???????????????????? | | ?# # """ #k@ #???????????????????? | | ?# # """ # #???????????????????? | | ?# # """ # #???????????????????? | | ?############## # #???????????????????? | | ??????????????## ####### #???????????????????? | | ???????????????###?????# #???????????????????? | | ???????????????????????# #???????????????????? | | ???????????????????????# #???????????????????? | | ???????????????????????# #???????????????????? | | ???????????????????????# #???????????????????? | | ???????????????????????# #???????????????????? | | ???????????????????????# #???????????????????? | | ???????????????????????# a???????????????????? | | ???????????????????????? #???????????????????? | | ???????????????????????? ????????????????????? | | ???????????????????????? ????????????????????? | | ???????????????????????????????????????????????? | | ???????????????????????????????????????????????? | | ???????????????????????????????????????????????? | | ???????????????????????????????????????????????? | | ???????????????????????????????????????????????? | | ???????????????????????????????????????????????? | | ???????????????????????????????????????????????? | | ???????????????????????????????????????????????? | | ???????????????????????????????????????????????? | +----------------------------------------------------+ Best States ------------- Heat Dissipation 31 Energy Generation 25 Energy Capacity 300 Matter Stores 300 Matter Capacity 300 Sight Range 16 Terrain Scan Density 10 Armor Coverage 80 Resistance: KI 20 Resistance: TH 20 Resistance: EX 20 Resistance: EM 20 Resistance: I 20 Resistance: S 20 Resistance: P 20 Evasion (%) 63 Targeting Accuracy 8 Recoil Reduction 2 Offensive Hacking 10 Item Schematics ----------------- None Robot Schematics ------------------ None Fabricated ------------ Nothing Repaired ---------- Nothing Studied --------- None Alien Tech Used ----------------- None Achievements -------------- Deductive Reasoning Challenges ------------ None Game ------ Seed HardcellExplosiveTurbovents Manual? 0 Play Time 00:38:43 Cumulative 30.4 hours Start 2026.02.24 @ 16:45:50 End 2026.02.24 @ 17:20:56 Sessions 1 Manual Loads 0 Difficulty Adventurer Special Mode None Game No. 26 Rogue 8 Adventurer 13 Explorer 5 Win Type - Total 0 Types 0/0/0/0/0/0/0/0/0/0 Lore% 39 Gallery% 29 Achievement% 29 Wizard Run 0 Options --------- Layout 1 ASCII 0 Keyboard 0 Movement Numpad Keybinds 0 Fullscreen 1 Font 48/Crisp++ Map View 50x35 Zoom Use 0% Tactical HUD 0 Map Filters NONE Filters NONE Steam 1 RUN: 591e3b92-e61b-4ad9-9bf9-628a9a1d8996